fUST/lending_fUST_20250506
["ID","MTS","AMOUNT","RATE_DAILY","PERIOD"]
[360013259,1746478266517,-400.0,0.00035068,8]
[360013260,1746478266526,-2500.71,0.00035068,8]
[360013261,1746478266535,-1021.6,0.00035068,8]
[360013262,1746478266544,-400.0,0.00035068,8]
[360013263,1746478266554,-487.0402586,0.00035068,8]
[360013264,1746478266563,-1929.98,0.00035068,8]
[360013265,1746478266573,-400.0,0.00035068,8]
[360013266,1746478266582,-419.74,0.00035068,8]
[360013267,1746478266591,-1671.31,0.00035068,8]
[360013268,1746478266600,-926.06,0.00035068,8]
[360013269,1746478266609,-400.0,0.00035068,8]
[360013270,1746478266619,-766.89,0.00035068,8]
[360013271,1746478266628,-1401.18,0.00035068,8]
[360013272,1746478266638,-400.0,0.00035068,8]
[360013273,1746478266647,-400.0,0.00035068,8]
[360013274,1746478266656,-2028.41,0.00035068,8]
[360013275,1746478266665,-1584.51,0.00035068,8]
[360013276,1746478266675,-690.23463965,0.00035068,8]
[360013277,1746478266836,-1495.05536035,0.00035068,8]
[360013278,1746478266846,-1838.89,0.00035068,8]
[360013279,1746478266855,-704.07,0.00035068,8]
[360013280,1746478266866,-400.0,0.00035068,8]
[360013281,1746478266875,-426.69,0.00035068,8]
[360013282,1746478266885,-559.26,0.00035068,8]
[360013283,1746478266894,-1274.13,0.00035068,8]
[360013284,1746478266904,-2367.5,0.00035068,8]
[360013285,1746478266913,-400.0,0.00035068,8]
[360013286,1746478266922,-400.0,0.00035068,8]
[360013287,1746478266932,-1755.88,0.00035068,8]
[360013288,1746478266941,-400.0,0.00035068,8]
[360013289,1746478266950,-400.0,0.00035068,8]
[360013290,1746478266961,-444.31,0.00035068,8]
[360013291,1746478266973,-400.0,0.00035068,8]
[360013292,1746478266982,-558.74,0.00035068,8]
[360013293,1746478266992,-400.0,0.00035068,8]
[360013294,1746478267002,-400.0,0.00035068,8]
[360013295,1746478267012,-400.0,0.00035068,8]
[360013296,1746478267020,-1256.74,0.00035068,8]
[360013297,1746478267030,-804.09,0.00035068,8]
[360013298,1746478267040,-8688.02,0.00035068,8]
[360013299,1746478267049,-441.62,0.00035068,8]
[360013300,1746478267058,-598.18,0.00035068,8]
[360013301,1746478267067,-400.0,0.00035068,8]
[360013302,1746478267077,-400.0,0.00035068,8]
[360013303,1746478267086,-387.99983457,0.00035068,8]
[360013304,1746478267349,-400.0,0.00032876,8]
[360013305,1746478267358,-325.71192976,0.00032876,8]
[360013306,1746478267368,-400.0,0.0003315,8]
[360013307,1746478267378,-414.22,0.0003315,8]
[360013308,1746478267387,-400.0,0.00033424,8]
[360013309,1746478267396,-400.0,0.00033698,8]
[360013310,1746478267406,-207.676881,0.00033972,2]
[360013311,1746478267415,-400.0,0.00033972,8]
[360013312,1746478267424,-207.676881,0.00034246,2]
[360013313,1746478267433,-400.0,0.00034246,8]
[360013314,1746478267442,-400.0,0.0003452,8]
[360013315,1746478267451,-207.676881,0.00034794,2]
[360013316,1746478267461,-400.0,0.00034794,8]
[360013317,1746478267472,-587.04016543,0.00035068,8]
[360013318,1746478267481,-411.14,0.00035068,8]
[360013319,1746478267490,-400.0,0.00035068,8]
[360013320,1746478267500,-400.0,0.00035068,8]
[360013321,1746478267509,-400.0,0.00035068,8]
[360013322,1746478267518,-151.0,0.00035068,14]
[360013323,1746478267527,-1817.46,0.00035068,8]
[360013324,1746478267536,-436.25,0.00035068,8]
[360013325,1746478267545,-400.0,0.00035068,8]
[360013326,1746478267555,-460.72,0.00035068,8]
[360013327,1746478267564,-3933.64,0.00035068,8]
[360013328,1746478267573,-491.82,0.00035068,8]
[360013329,1746478267582,-21455.99,0.00035068,8]
[360013330,1746478267591,-400.0,0.00035068,8]
[360013331,1746478267601,-400.0,0.00035068,8]
[360013332,1746478267610,-400.0,0.00035068,8]
[360013333,1746478267619,-699.19,0.00035068,8]
[360013334,1746478267628,-2258.67,0.00035068,8]
[360013335,1746478267638,-518.32,0.00035068,8]
[360013336,1746478267648,-866.11,0.00035068,8]
[360013337,1746478267658,-568.11,0.00035068,8]
[360013338,1746478267668,-1754.39,0.00035068,8]
[360013339,1746478267678,-493.11,0.00035068,8]
[360013340,1746478267687,-2851.87,0.00035068,8]
[360013341,1746478267697,-2650.13,0.00035068,8]
[360013342,1746478267707,-400.76,0.00035068,8]
[360013343,1746478267717,-400.0,0.00035068,8]
[360013344,1746478267726,-1576.25,0.00035068,8]
[360013345,1746478267736,-1372.78,0.00035068,8]
[360013346,1746478267745,-400.0,0.00035068,8]
[360013347,1746478267755,-999.53,0.00035068,8]
[360013348,1746478267765,-400.0,0.00035068,8]
[360013349,1746478267774,-516.04,0.00035068,8]
[360013350,1746478267784,-1376.17,0.00035068,8]
[360013351,1746478267794,-661.72,0.00035068,8]
[360013352,1746478267804,-178.905606,0.00035068,14]
[360013353,1746478267814,-6359.3,0.00035068,8]
[360013354,1746478267824,-940.89,0.00035068,8]
[360013355,1746478267834,-8405.77,0.00035068,8]
[360013356,1746478267843,-400.0,0.00035068,8]
[360013357,1746478267853,-1110.72,0.00035068,8]
[360013358,1746478267863,-1647.64,0.00035068,8]
[360013359,1746478267873,-487.22,0.00035068,8]
[360013360,1746478267883,-445.695408,0.00035068,14]
[360013361,1746478267893,-151.0,0.00035068,14]
[360013362,1746478267903,-445.695408,0.00035068,14]
[360013363,1746478267913,-400.0,0.00035068,2]
[360013364,1746478267922,-690.94,0.00035068,8]
[360013365,1746478267932,-2712.48,0.00035068,8]
[360013366,1746478267941,-400.0,0.00035068,8]
[360013367,1746478267951,-400.0,0.00035068,8]
[360013368,1746478267962,-207.676881,0.00035068,2]
[360013369,1746478267973,-400.0,0.00035068,8]
[360013370,1746478267983,-151.0,0.000351,16]
[360013371,1746478267993,-151.0,0.000352,16]
[360013372,1746478268002,-1465.62,0.00035342,8]
[360013373,1746478268013,-151.0,0.00035342,14]
[360013374,1746478268022,-7.72313343,0.00035342,14]
[360013375,1746478268039,-269.79756657,0.00035342,14]
[360013376,1746478268048,-400.0,0.00035342,8]
[360013377,1746478268058,-400.0,0.00035342,8]
[360013378,1746478268067,-506.86,0.00035342,8]
[360013379,1746478268076,-400.0,0.00035342,8]
[360013380,1746478268085,-650.49,0.00035342,8]
[360013381,1746478268094,-400.0,0.00035342,8]
[360013382,1746478268104,-400.0,0.00035342,8]
[360013383,1746478268113,-400.0,0.00035342,8]
[360013384,1746478268122,-1120.46,0.00035342,8]
[360013385,1746478268132,-151.0,0.00035342,14]
[360013386,1746478268141,-753.58,0.00035342,8]
[360013387,1746478268150,-400.0,0.00035342,8]
[360013388,1746478268159,-507.88,0.00035342,8]
[360013389,1746478268169,-1829.51,0.00035342,8]
[360013390,1746478268178,-400.0,0.00035342,8]
[360013391,1746478268187,-1620.57,0.00035342,8]
[360013392,1746478268197,-592.51,0.00035342,8]
[360013393,1746478268206,-400.0,0.00035342,8]
[360013394,1746478268215,-537.21,0.00035342,8]
[360013395,1746478268224,-400.0,0.00035342,8]
[360013396,1746478268233,-2523.41,0.00035342,8]
[360013397,1746478268243,-547.87,0.00035342,8]
[360013398,1746478268253,-400.0,0.00035342,8]
[360013399,1746478268262,-400.0,0.00035342,8]
[360013400,1746478268277,-543.46,0.00035342,8]
[360013401,1746478268286,-400.0,0.00035342,8]
[360013402,1746478268295,-151.0,0.00035342,14]
[360013403,1746478268305,-179.046229,0.00035342,14]
[360013404,1746478268314,-770.95,0.00035342,8]
[360013405,1746478268324,-827.007674,0.00035342,2]
[360013406,1746478268333,-1081.95,0.00035342,8]
[360013407,1746478268342,-400.0,0.00035342,8]
[360013408,1746478268352,-483.31,0.00035342,8]
[360013409,1746478268361,-1243.4,0.00035342,8]
[360013410,1746478268370,-1098.85,0.00035342,8]
[360013411,1746478268380,-482.85,0.00035342,8]
[360013412,1746478268389,-400.0,0.00035342,8]
[360013413,1746478268398,-400.0,0.00035342,8]
[360013414,1746478268407,-566.0,0.00035342,8]
[360013415,1746478268417,-400.0,0.00035342,8]
[360013416,1746478268427,-400.0,0.00035342,8]
[360013417,1746478268436,-400.0,0.00035342,8]
[360013418,1746478268445,-400.0,0.00035342,8]
[360013419,1746478268455,-400.0,0.00035342,8]
[360013420,1746478268464,-400.0,0.00035342,8]
[360013421,1746478268474,-709.8,0.00035342,8]
[360013422,1746478268484,-233.72697842,0.00035342,8]
[360013423,1746478268494,-400.0,0.00035342,8]
[360013424,1746478268504,-4121.14,0.00035342,8]
[360013425,1746478268513,-400.0,0.00035342,8]
[360013426,1746478268522,-812.34,0.00035342,8]
[360013427,1746478268532,-654.51,0.00035342,8]
[360013428,1746478268541,-730.71,0.00035342,8]
[360013429,1746478268551,-400.0,0.00035342,8]
[360013430,1746478268560,-400.0,0.00035342,8]
[360013431,1746478268569,-400.0,0.00035342,8]
[360013432,1746478268579,-2752.23,0.00035342,2]
[360013433,1746478268588,-432.56,0.00035342,8]
[360013434,1746478268597,-762.68,0.00035342,8]
[360013435,1746478268606,-431.94,0.00035342,8]
[360013436,1746478268616,-436.54,0.00035342,8]
[360013437,1746478268625,-400.0,0.00035342,8]
[360013438,1746478268634,-673.29,0.00035342,8]
[360013439,1746478268644,-1252.09,0.00035342,8]
[360013440,1746478268653,-702.93,0.00035342,8]
[360013441,1746478268662,-400.0,0.00035342,8]
[360013442,1746478268671,-1335.89,0.00035342,8]
[360013443,1746478268680,-400.0,0.00035342,8]
[360013444,1746478268689,-409.22,0.00035342,8]
[360013445,1746478268699,-400.0,0.00035342,8]
[360013446,1746478268709,-990.15,0.00035342,8]
[360013447,1746478268718,-400.0,0.00035342,8]
[360013448,1746478268727,-784.71,0.00035342,8]
[360013449,1746478268736,-624.56,0.00035342,8]
[360013450,1746478268746,-411.93,0.00035342,8]
[360013451,1746478268755,-446.32,0.00035342,8]
[360013452,1746478268764,-500.9,0.00035342,8]
[360013453,1746478268773,-827.29,0.00035342,8]
[360013454,1746478268783,-530.84,0.00035342,8]
[360013455,1746478268792,-693.82,0.00035342,8]
[360013456,1746478268801,-612.41,0.00035342,8]
[360013457,1746478268810,-400.0,0.00035342,8]
[360013458,1746478268820,-461.37,0.00035342,8]
[360013459,1746478268830,-352.803023,0.00035342,14]
[360013460,1746478268839,-352.803023,0.00035342,14]
[360013461,1746478268849,-430.1,0.00035342,8]
[360013462,1746478268858,-408.25622231,0.00035342,8]
[360013463,1746478268867,-563.39,0.00035342,8]
[360013464,1746478268877,-400.0,0.00035342,8]
[360013465,1746478268886,-151.0,0.00035342,14]
[360013466,1746478268896,-400.0,0.00035342,8]
[360013467,1746478268906,-151.0,0.00035342,14]
[360013468,1746478268916,-400.0,0.00035342,8]
[360013469,1746478268925,-2969.31,0.00035342,8]
[360013470,1746478268935,-167.27812318,0.00035342,8]
[360013471,1746478268944,-401.12,0.00035342,8]
[360013472,1746478268954,-400.0,0.00035342,8]
[360013473,1746478268965,-3050.13,0.00035342,8]
[360013474,1746478268975,-2910.47,0.00035342,8]
[360013475,1746478268985,-773.72,0.00035342,8]
[360013476,1746478268994,-1317.05,0.00035342,8]
[360013477,1746478269004,-2598.82,0.00035342,8]
[360013478,1746478269013,-417.65,0.00035342,8]
[360013479,1746478269023,-552.03,0.00035342,8]
[360013480,1746478269032,-400.0,0.00035342,8]
[360013481,1746478269043,-400.0,0.00035342,8]
[360013482,1746478269053,-510.92,0.00035342,8]
[360013483,1746478269164,-2556.58,0.00035342,8]
[360013484,1746478269174,-151.0,0.00035342,14]
[360013485,1746478269184,-400.0,0.00035342,8]
[360013486,1746478269193,-717.05,0.00035342,8]
[360013487,1746478269203,-2500.71,0.00035342,8]
[360013488,1746478269212,-400.0,0.00035342,8]
[360013489,1746478269223,-1021.6,0.00035342,8]
[360013490,1746478269232,-400.0,0.00035342,8]
[360013491,1746478269242,-1929.98,0.00035342,8]
[360013492,1746478269251,-400.0,0.00035342,8]
[360013493,1746478269261,-419.74,0.00035342,8]
[360013494,1746478269270,-1671.31,0.00035342,8]
[360013495,1746478269278,-926.06,0.00035342,8]
[360013496,1746478269287,-766.89,0.00035342,8]
[360013497,1746478269296,-1401.18,0.00035342,8]
[360013498,1746478269306,-400.0,0.00035342,8]
[360013499,1746478269315,-400.0,0.00035342,8]
[360013500,1746478269324,-2028.41,0.00035342,8]
[360013501,1746478269332,-1584.51,0.00035342,8]
[360013502,1746478269341,-2185.29,0.00035342,8]
[360013503,1746478269350,-1838.89,0.00035342,8]
[360013504,1746478269360,-704.07,0.00035342,8]
[360013505,1746478269369,-400.0,0.00035342,8]
[360013506,1746478269379,-426.69,0.00035342,8]
[360013507,1746478269388,-559.26,0.00035342,8]
[360013508,1746478269397,-1274.13,0.00035342,8]
[360013509,1746478269406,-2367.5,0.00035342,8]
[360013510,1746478269415,-400.0,0.00035342,8]
[360013511,1746478269425,-400.0,0.00035342,8]
[360013512,1746478269435,-1755.88,0.00035342,8]
[360013513,1746478269444,-400.0,0.00035342,8]
[360013514,1746478269453,-400.0,0.00035342,8]
[360013515,1746478269463,-444.31,0.00035342,8]
[360013516,1746478269473,-462.47,0.00035342,8]
[360013517,1746478269483,-558.74,0.00035342,8]
[360013518,1746478269492,-373.43972054,0.00035342,8]
[360013519,1746478269501,-400.0,0.00035342,8]
[360013520,1746478269511,-400.0,0.00035342,8]
[360013521,1746478269520,-1256.74,0.00035342,8]
[360013522,1746478269529,-804.09,0.00035342,8]
[360013523,1746478269539,-8688.02,0.00035342,8]
[360013524,1746478269548,-441.62,0.00035342,8]
[360013525,1746478269558,-598.18,0.00035342,8]
[360013526,1746478269567,-400.0,0.00035342,8]
[360013527,1746478269577,-400.0,0.00035342,8]
[360013528,1746478269586,-975.04,0.00035342,8]
[360013529,1746478269595,-411.14,0.00035342,8]
[360013530,1746478269604,-400.0,0.00035342,8]
[360013531,1746478269614,-400.0,0.00035342,8]
[360013532,1746478269623,-400.0,0.00035342,8]
[360013533,1746478269632,-1817.46,0.00035342,8]
[360013534,1746478269642,-436.25,0.00035342,8]
[360013535,1746478269651,-400.0,0.00035342,8]
[360013536,1746478269660,-460.72,0.00035342,8]
[360013537,1746478269670,-3933.64,0.00035342,8]
[360013538,1746478269679,-491.82,0.00035342,8]
[360013539,1746478269690,-21455.99,0.00035342,8]
[360013540,1746478269699,-400.0,0.00035342,8]
[360013541,1746478269709,-400.0,0.00035342,8]
[360013542,1746478269718,-400.0,0.00035342,8]
[360013543,1746478269728,-699.19,0.00035342,8]
[360013544,1746478269737,-2258.67,0.00035342,8]
[360013545,1746478269747,-518.32,0.00035342,8]
[360013546,1746478269757,-866.11,0.00035342,8]
[360013547,1746478269766,-568.11,0.00035342,8]
[360013548,1746478269776,-1754.39,0.00035342,8]
[360013549,1746478269786,-493.11,0.00035342,8]
[360013550,1746478269795,-2851.87,0.00035342,8]
[360013551,1746478269806,-2650.13,0.00035342,8]
[360013552,1746478269817,-400.76,0.00035342,8]
[360013553,1746478269827,-400.0,0.00035342,8]
[360013554,1746478269836,-1576.25,0.00035342,8]
[360013555,1746478269845,-1372.78,0.00035342,8]
[360013556,1746478269855,-400.0,0.00035342,8]
[360013557,1746478269865,-999.53,0.00035342,8]
[360013558,1746478269875,-400.0,0.00035342,8]
[360013559,1746478269884,-516.04,0.00035342,8]
[360013560,1746478269894,-1376.17,0.00035342,8]
[360013561,1746478269904,-661.72,0.00035342,8]
[360013562,1746478269913,-6359.3,0.00035342,8]
[360013563,1746478269923,-940.89,0.00035342,8]
[360013564,1746478269933,-8405.77,0.00035342,8]
[360013565,1746478269943,-254.17945117,0.00035342,8]
[360013566,1746478269952,-1110.72,0.00035342,8]
[360013567,1746478269962,-1647.64,0.00035342,8]
[360013568,1746478269975,-487.22,0.00035342,8]
[360013569,1746478269984,-400.0,0.00035342,2]
[360013570,1746478269993,-690.94,0.00035342,8]
[360013571,1746478270003,-2712.48,0.00035342,8]
[360013572,1746478270013,-400.0,0.00035342,8]
[360013573,1746478270022,-400.0,0.00035342,8]
[360013574,1746478270031,-400.0,0.00035342,8]
[360013575,1746478270042,-2000.0,0.00035369,4]
[360013576,1746478270051,-160.0,0.00035373,6]
[360013577,1746478270061,-946.98696751,0.00035426,2]
[360013578,1746478270070,-1000.0,0.00035479,5]
[360013579,1746478270079,-1002.03315403,0.00035479,5]
[360013580,1746478270088,-505.6254325,0.00035479,5]
[360013581,1746478270097,-1000.0,0.00035479,5]
[360013582,1746478270106,-1000.0,0.00035479,5]
[360013583,1746478270116,-1034.8614574,0.00035479,5]
[360013584,1746478270125,-160.0,0.000355,48]
[360013585,1746478270135,-1760.86,0.000355,30]
[360013586,1746478270144,-1100.0,0.00035534,60]
[360013587,1746478270154,-501.34714269,0.00035555,33]
[360013588,1746478270163,-3000.0,0.000356,24]
[360013589,1746478270173,-2160.3,0.000356,2]
[360013590,1746478270182,-151.0,0.000356,14]
[360013591,1746478270192,-207.676881,0.000356,2]
[360013592,1746478270201,-3000.0,0.0003561,24]
[360013593,1746478270210,-558.35417367,0.00035616,21]
[360013594,1746478270220,-151.0,0.00035616,14]
[360013595,1746478270229,-1465.62,0.00035616,8]
[360013596,1746478270239,-151.0,0.00035616,14]
[360013597,1746478270248,-151.0,0.00035616,14]
[360013598,1746478270257,-400.0,0.00035616,8]
[360013599,1746478270266,-400.0,0.00035616,8]
[360013600,1746478270275,-506.86,0.00035616,8]
[360013601,1746478270284,-400.0,0.00035616,8]
[360013602,1746478270293,-650.49,0.00035616,8]
[360013603,1746478270302,-400.0,0.00035616,8]
[360013604,1746478270311,-173.34927227,0.00035616,8]
[360013605,1746478270320,-363.01716423,0.00035616,8]
[360013606,1746478270330,-1120.46,0.00035616,8]
[360013607,1746478270339,-151.0,0.00035616,14]
[360013608,1746478270348,-753.58,0.00035616,8]
[360013609,1746478270357,-400.0,0.00035616,8]
[360013610,1746478270367,-507.88,0.00035616,8]
[360013611,1746478270376,-1829.51,0.00035616,8]
[360013612,1746478270385,-400.0,0.00035616,8]
[360013613,1746478270394,-1620.57,0.00035616,8]
[360013614,1746478270404,-592.51,0.00035616,8]
[360013615,1746478270413,-400.0,0.00035616,8]
[360013616,1746478270422,-537.21,0.00035616,8]
[360013617,1746478270431,-400.0,0.00035616,8]
[360013618,1746478270441,-2523.41,0.00035616,8]
[360013619,1746478270450,-547.87,0.00035616,8]
[360013620,1746478270459,-400.0,0.00035616,8]
[360013621,1746478270469,-400.0,0.00035616,8]
[360013622,1746478270479,-543.46,0.00035616,8]
[360013623,1746478270488,-400.0,0.00035616,8]
[360013624,1746478270497,-770.95,0.00035616,8]
[360013625,1746478270506,-1081.95,0.00035616,8]
[360013626,1746478270515,-400.0,0.00035616,8]
[360013627,1746478270524,-483.31,0.00035616,8]
[360013628,1746478270534,-1243.4,0.00035616,8]
[360013629,1746478270543,-1098.85,0.00035616,8]
[360013630,1746478270551,-482.85,0.00035616,8]
[360013631,1746478270561,-400.0,0.00035616,8]
[360013632,1746478270575,-400.0,0.00035616,8]
[360013633,1746478270583,-566.0,0.00035616,8]
[360013634,1746478270592,-400.0,0.00035616,8]
[360013635,1746478270602,-400.0,0.00035616,8]
[360013636,1746478270611,-400.0,0.00035616,8]
[360013637,1746478270620,-400.0,0.00035616,8]
[360013638,1746478270630,-400.0,0.00035616,8]
[360013639,1746478270639,-1500.0,0.00035616,30]
[360013640,1746478270649,-400.0,0.00035616,8]
[360013641,1746478270659,-709.8,0.00035616,8]
[360013642,1746478270668,-331.77668239,0.00035616,8]
[360013643,1746478270678,-4121.14,0.00035616,8]
[360013644,1746478270687,-400.0,0.00035616,8]
[360013645,1746478270696,-812.34,0.00035616,8]
[360013646,1746478270705,-654.51,0.00035616,8]
[360013647,1746478270715,-730.71,0.00035616,8]
[360013648,1746478270819,-400.0,0.00035616,8]
[360013649,1746478270829,-400.0,0.00035616,8]
[360013650,1746478270840,-400.0,0.00035616,8]
[360013651,1746478270850,-2752.23,0.00035616,2]
[360013652,1746478270859,-432.56,0.00035616,8]
[360013653,1746478270869,-762.68,0.00035616,8]
[360013654,1746478270879,-431.94,0.00035616,8]
[360013655,1746478270888,-436.54,0.00035616,8]
[360013656,1746478270898,-400.0,0.00035616,8]
[360013657,1746478270907,-673.29,0.00035616,8]
[360013658,1746478270916,-400.0,0.00035616,8]
[360013659,1746478270925,-400.0,0.00035616,8]
[360013660,1746478270934,-400.0,0.00035616,8]
[360013661,1746478270943,-400.0,0.00035616,8]
[360013662,1746478270952,-400.0,0.00035616,8]
[360013663,1746478270964,-400.0,0.00035616,8]
[360013664,1746478270974,-400.0,0.00035616,8]
[360013665,1746478270984,-400.0,0.00035616,8]
[360013666,1746478270994,-400.0,0.00035616,8]
[360013667,1746478271003,-400.0,0.00035616,8]
[360013668,1746478271014,-400.0,0.00035616,8]
[360013669,1746478271023,-1252.09,0.00035616,8]
[360013670,1746478271033,-702.93,0.00035616,8]
[360013671,1746478271042,-400.0,0.00035616,8]
[360013672,1746478271053,-1335.89,0.00035616,8]
[360013673,1746478271062,-400.0,0.00035616,8]
[360013674,1746478271071,-409.22,0.00035616,8]
[360013675,1746478271080,-173.12327032,0.00035616,8]
[360013676,1746478271090,-990.15,0.00035616,8]
[360013677,1746478271099,-400.0,0.00035616,8]
[360013678,1746478271108,-784.71,0.00035616,8]
[360013679,1746478271118,-624.56,0.00035616,8]
[360013680,1746478271127,-411.93,0.00035616,8]
[360013681,1746478271136,-446.32,0.00035616,8]
[360013682,1746478271145,-500.9,0.00035616,8]
[360013683,1746478271155,-827.29,0.00035616,8]
[360013684,1746478271164,-530.84,0.00035616,8]
[360013685,1746478271173,-693.82,0.00035616,8]
[360013686,1746478271183,-612.41,0.00035616,8]
[360013687,1746478271193,-400.0,0.00035616,8]
[360013688,1746478271203,-461.37,0.00035616,8]
[360013689,1746478271212,-352.803023,0.00035616,14]
[360013690,1746478271223,-352.803023,0.00035616,14]
[360013691,1746478271233,-430.1,0.00035616,8]
[360013692,1746478271242,-563.39,0.00035616,8]
[360013693,1746478271252,-400.0,0.00035616,8]
[360013694,1746478271262,-151.0,0.00035616,14]
[360013695,1746478271272,-400.0,0.00035616,8]
[360013696,1746478271281,-400.0,0.00035616,8]
[360013697,1746478271291,-151.0,0.00035616,14]
[360013698,1746478271300,-2969.31,0.00035616,8]
[360013699,1746478271310,-401.12,0.00035616,8]
[360013700,1746478271319,-400.0,0.00035616,8]
[360013701,1746478271329,-3050.13,0.00035616,8]
[360013702,1746478271338,-2910.47,0.00035616,8]
[360013703,1746478271348,-773.72,0.00035616,8]
[360013704,1746478271357,-151.0,0.00035616,14]
[360013705,1746478271367,-1317.05,0.00035616,8]
[360013706,1746478271376,-2598.82,0.00035616,8]
[360013707,1746478271385,-417.65,0.00035616,8]
[360013708,1746478271394,-552.03,0.00035616,8]
[360013709,1746478271403,-400.0,0.00035616,8]
[360013710,1746478271413,-303.430025,0.00035616,14]
[360013711,1746478271423,-400.0,0.00035616,8]
[360013712,1746478271433,-510.92,0.00035616,8]
[360013713,1746478271443,-2556.58,0.00035616,8]
[360013714,1746478271452,-303.430025,0.00035616,14]
[360013715,1746478271462,-400.0,0.00035616,8]
[360013716,1746478271471,-717.05,0.00035616,8]
[360013717,1746478271481,-2500.71,0.00035616,8]
[360013718,1746478271491,-400.0,0.00035616,8]
[360013719,1746478271500,-1021.6,0.00035616,8]
[360013720,1746478271510,-400.0,0.00035616,8]
[360013721,1746478271519,-1929.98,0.00035616,8]
[360013722,1746478271529,-255.61259103,0.00035616,8]
[360013723,1746478271538,-419.74,0.00035616,8]
[360013724,1746478271547,-1671.31,0.00035616,8]
[360013725,1746478271557,-926.06,0.00035616,8]
[360013726,1746478271567,-766.89,0.00035616,8]
[360013727,1746478271577,-1401.18,0.00035616,8]
[360013728,1746478271586,-400.0,0.00035616,8]
[360013729,1746478271596,-2028.41,0.00035616,8]
[360013730,1746478271605,-1584.51,0.00035616,8]
[360013731,1746478271615,-2185.29,0.00035616,8]
[360013732,1746478271624,-1838.89,0.00035616,8]
[360013733,1746478271634,-704.07,0.00035616,8]
[360013734,1746478271644,-400.0,0.00035616,8]
[360013735,1746478271654,-426.69,0.00035616,8]
[360013736,1746478271663,-559.26,0.00035616,8]
[360013737,1746478271673,-1274.13,0.00035616,8]
[360013738,1746478271683,-2367.5,0.00035616,8]
[360013739,1746478271692,-400.0,0.00035616,8]
[360013740,1746478271702,-400.0,0.00035616,8]
[360013741,1746478271711,-1755.88,0.00035616,8]
[360013742,1746478271721,-400.0,0.00035616,8]
[360013743,1746478271730,-400.0,0.00035616,8]
[360013744,1746478271740,-444.31,0.00035616,8]
[360013745,1746478271750,-558.74,0.00035616,8]
[360013746,1746478271760,-400.0,0.00035616,8]
[360013747,1746478271770,-162.70763767,0.00035616,8]
[360013748,1746478271780,-1256.74,0.00035616,8]
[360013749,1746478271790,-804.09,0.00035616,8]
[360013750,1746478271800,-8688.02,0.00035616,8]
[360013751,1746478271810,-441.62,0.00035616,8]
[360013752,1746478271820,-598.18,0.00035616,8]
[360013753,1746478271830,-400.0,0.00035616,8]
[360013754,1746478271840,-400.0,0.00035616,8]
[360013755,1746478271850,-975.04,0.00035616,8]
[360013756,1746478271860,-411.14,0.00035616,8]
[360013757,1746478271869,-400.0,0.00035616,8]
[360013758,1746478271879,-400.0,0.00035616,8]